[Event "December 12 Late 2023"]
[Site "https://www.chess.com"]
[Date "2023.12.12"]
[Round "6"]
[White "Mendes Aaron Reeve"]
[Black "Ladan, Nicholas"]
[Result "0-1"]
[Board "58"]
[TimeControl "180+1"]
[WhiteFideId "25954938"]
[BlackFideId "30918855"]
[WhiteElo "2645"]
[BlackElo "2463"]
[WhiteTeam "CAN"]
[BlackTeam "USA"]
[WhiteClock "0:00:13"]
[BlackClock "0:00:06"]

1. e4 {[%clk 0:02:48]}  e5 {[%clk 0:02:59]} 2. Nf3 {[%clk 0:02:46]}  Nc6 {[%clk 0:03:00]} 3. d4 {[%clk 0:02:45]}  exd4 {[%clk 0:03:00]} 4. Nxd4 {[%clk 0:02:46]}  Bc5 {[%clk 0:03:00]} 5. Nb3 {[%clk 0:02:46]}  Bb6 {[%clk 0:03:00]} 6. Nc3 {[%clk 0:02:46]}  Nge7 {[%clk 0:03:00]} 7. Qe2 {[%clk 0:02:46]}  O-O {[%clk 0:03:00]} 8. Be3 {[%clk 0:02:47]}  f5 {[%clk 0:03:00]} 9. O-O-O {[%clk 0:02:46]}  f4 {[%clk 0:02:59]} 10. Bxb6 {[%clk 0:02:46]}  axb6 {[%clk 0:03:00]} 11. f3 {[%clk 0:02:46]}  d6 {[%clk 0:02:58]} 12. Kb1 {[%clk 0:02:46]}  Be6 {[%clk 0:02:57]} 13. g3 {[%clk 0:02:46]}  Ne5 {[%clk 0:02:52]} 14. Nd4 {[%clk 0:02:37]}  Qd7 {[%clk 0:02:37]} 15. a3 {[%clk 0:02:28]}  Bc4 {[%clk 0:02:31]} 16. Qd2 {[%clk 0:02:10]}  c5 {[%clk 0:02:13]} 17. gxf4 {[%clk 0:02:01]}  cxd4 {[%clk 0:02:03]} 18. fxe5 {[%clk 0:01:55]}  Bxf1 {[%clk 0:01:57]} 19. Qxd4 {[%clk 0:01:50]}  Bh3 {[%clk 0:01:55]} 20. exd6 {[%clk 0:01:46]}  Nc6 {[%clk 0:01:49]} 21. Qxb6 {[%clk 0:01:44]}  Rxf3 {[%clk 0:01:33]} 22. Nb5 {[%clk 0:01:32]}  Ne5 {[%clk 0:01:13]} 23. Rd5 {[%clk 0:01:27]}  Nc4 {[%clk 0:01:02]} 24. Qc7 {[%clk 0:01:24]}  Ne3 {[%clk 0:00:55]} 25. Re5 {[%clk 0:00:48]}  Rc8 {[%clk 0:00:40]} 26. Qxd7 {[%clk 0:00:47]}  Bxd7 {[%clk 0:00:41]} 27. Nc7 {[%clk 0:00:46]}  Nc4 {[%clk 0:00:29]} 28. Re7 {[%clk 0:00:43]}  Rf7 {[%clk 0:00:29]} 29. Rd1 {[%clk 0:00:37]}  Nxd6 {[%clk 0:00:20]} 30. Nd5 {[%clk 0:00:21]}  Rcf8 {[%clk 0:00:15]} 31. e5 {[%clk 0:00:15]}  Nf5 {[%clk 0:00:12]} 32. Rxf7 {[%clk 0:00:13]}  Kxf7 {[%clk 0:00:12]} 33. Nb6 {[%clk 0:00:14]}  Be6 {[%clk 0:00:12]} 34. c4 {[%clk 0:00:13]}  Ke7 {[%clk 0:00:09]} 35. b4 {[%clk 0:00:12]}  Rd8 {[%clk 0:00:09]} 36. Rxd8 {[%clk 0:00:11]}  Kxd8 {[%clk 0:00:09]} 37. c5 {[%clk 0:00:12]}  g5 {[%clk 0:00:08]} 38. a4 {[%clk 0:00:11]}  h5 {[%clk 0:00:07]} 39. a5 {[%clk 0:00:11]}  Kc7 {[%clk 0:00:07]} 40. b5 {[%clk 0:00:11]}  Nd4 {[%clk 0:00:05]} 41. Na8+ {[%clk 0:00:05]}  Kb8 {[%clk 0:00:05]} 42. Nb6 {[%clk 0:00:02]}  Nxb5 {[%clk 0:00:05]} 43. Kc1 {[%clk 0:00:03]}  Kc7 {[%clk 0:00:05]} 44. Kd2 {[%clk 0:00:04]}  Kc6 {[%clk 0:00:05]} 45. Na4 {[%clk 0:00:04]}  Nc7 {[%clk 0:00:04]} 46. Kc3 {[%clk 0:00:03]}  Nd5+ {[%clk 0:00:04]} 47. Kd4 {[%clk 0:00:04]}  Nb4 {[%clk 0:00:03]} 48. Nb2 {[%clk 0:00:04]}  Kb5 {[%clk 0:00:03]} 49. Nd1 {[%clk 0:00:03]}  Nc6+ {[%clk 0:00:04]} 50. Ke4 {[%clk 0:00:03]}  Kxc5 {[%clk 0:00:04]} 51. Ne3 {[%clk 0:00:04]}  Nb4 {[%clk 0:00:03]} 52. Nf1 {[%clk 0:00:03]}  Nd5 {[%clk 0:00:03]} 53. Nd2 {[%clk 0:00:04]}  h4 {[%clk 0:00:03]} 54. Nb3+ {[%clk 0:00:03]}  Kb4 {[%clk 0:00:03]} 55. Nd4 {[%clk 0:00:04]}  Nc7 {[%clk 0:00:03]} 56. Nf3 {[%clk 0:00:03]}  g4 {[%clk 0:00:02]} 57. Ng5 {[%clk 0:00:03]}  Kxa5 {[%clk 0:00:03]} 58. Kf4 {[%clk 0:00:03]}  b5 {[%clk 0:00:03]} 59. Nxe6 {[%clk 0:00:03]}  Nxe6+ {[%clk 0:00:04]} 60. Kxg4 {[%clk 0:00:04]}  b4 {[%clk 0:00:04]} 61. Kf5 {[%clk 0:00:04]}  Nd4+ {[%clk 0:00:05]} 62. Ke4 {[%clk 0:00:05]}  Nb5 {[%clk 0:00:05]} 63. e6 {[%clk 0:00:04]}  Nc7 {[%clk 0:00:05]} 64. e7 {[%clk 0:00:04]}  Ka4 {[%clk 0:00:05]} 65. Kf5 {[%clk 0:00:04]}  b3 {[%clk 0:00:05]} 66. Ke5 {[%clk 0:00:05]}  b2 {[%clk 0:00:05]} 67. Kd6 {[%clk 0:00:06]}  Ne8+ {[%clk 0:00:06]} 68. Kd7 {[%clk 0:00:06]}  Nf6+ {[%clk 0:00:06]} 69. Ke6 {[%clk 0:00:06]}  Ne8 {[%clk 0:00:06]} 70. Kd7 {[%clk 0:00:06]}  b1=Q {[%clk 0:00:06]} 71. Kxe8 {[%clk 0:00:07]}  Kb5 {[%clk 0:00:04]} 72. Kf8 {[%clk 0:00:08]}  Qf5+ {[%clk 0:00:04]} 73. Kg7 {[%clk 0:00:08]}  Qe6 {[%clk 0:00:04]} 74. Kf8 {[%clk 0:00:09]}  Qf6+ {[%clk 0:00:05]} 75. Ke8 {[%clk 0:00:09]}  Kc6 {[%clk 0:00:05]} 76. Kd8 {[%clk 0:00:10]}  Kd6 {[%clk 0:00:06]} 77. Kc8 {[%clk 0:00:11]}  Qxe7 {[%clk 0:00:06]} 78. Kb8 {[%clk 0:00:12]}  Kc6 {[%clk 0:00:06]} 79. Ka8 {[%clk 0:00:13]}  Qb7# {[%clk 0:00:06]} 0-1

[Event "December 12 Late 2023"]
[Site "https://www.chess.com"]
[Date "2023.12.12"]
[Round "6"]
[White "Manukyan, Sargis A."]
[Black "Liu, Casper"]
[Result "1-0"]
[Board "59"]
[TimeControl "180+1"]
[WhiteFideId "13303970"]
[BlackFideId "1454153"]
[WhiteElo "2639"]
[BlackElo "2454"]
[WhiteTeam "ARM"]
[BlackTeam "DEN"]
[WhiteClock "0:00:09"]
[BlackClock "0:00:02"]

1. d4 {[%clk 0:03:00]}  f5 {[%clk 0:03:00]} 2. c4 {[%clk 0:03:01]}  Nf6 {[%clk 0:03:01]} 3. Nc3 {[%clk 0:03:01]}  e6 {[%clk 0:03:01]} 4. Nf3 {[%clk 0:03:01]}  g6 {[%clk 0:03:02]} 5. Bg5 {[%clk 0:02:57]}  Bg7 {[%clk 0:03:02]} 6. Bxf6 {[%clk 0:02:57]}  Bxf6 {[%clk 0:03:03]} 7. e4 {[%clk 0:02:58]}  O-O {[%clk 0:03:02]} 8. e5 {[%clk 0:02:58]}  Bg7 {[%clk 0:03:01]} 9. h4 {[%clk 0:02:58]}  d6 {[%clk 0:03:00]} 10. exd6 {[%clk 0:02:57]}  cxd6 {[%clk 0:03:00]} 11. Qd2 {[%clk 0:02:56]}  h6 {[%clk 0:02:50]} 12. Bd3 {[%clk 0:02:54]}  Nc6 {[%clk 0:02:49]} 13. d5 {[%clk 0:02:53]}  Ne5 {[%clk 0:02:38]} 14. Nxe5 {[%clk 0:02:47]}  dxe5 {[%clk 0:02:39]} 15. O-O-O {[%clk 0:02:44]}  e4 {[%clk 0:02:23]} 16. Bc2 {[%clk 0:02:37]}  a6 {[%clk 0:02:12]} 17. f3 {[%clk 0:02:33]}  b5 {[%clk 0:01:58]} 18. fxe4 {[%clk 0:02:29]}  bxc4 {[%clk 0:01:55]} 19. h5 {[%clk 0:02:26]}  Rb8 {[%clk 0:01:49]} 20. hxg6 {[%clk 0:02:22]}  Bf6 {[%clk 0:01:04]} 21. Kb1 {[%clk 0:02:09]}  Qa5 {[%clk 0:00:33]} 22. Rh3 {[%clk 0:01:32]}  Qa3 {[%clk 0:00:20]} 23. Bb3 {[%clk 0:01:25]}  Qb4 {[%clk 0:00:19]} 24. Qxh6 {[%clk 0:01:23]}  Rb7 {[%clk 0:00:17]} 25. g7 {[%clk 0:00:32]}  Bxg7 {[%clk 0:00:11]} 26. Qh7+ {[%clk 0:00:31]}  Kf7 {[%clk 0:00:12]} 27. dxe6+ {[%clk 0:00:26]}  Bxe6 {[%clk 0:00:12]} 28. exf5 {[%clk 0:00:26]}  Bc8 {[%clk 0:00:03]} 29. Rg3 {[%clk 0:00:20]}  cxb3 {[%clk 0:00:01]} 30. Rxg7+ {[%clk 0:00:17]}  Kf6 {[%clk 0:00:02]} 31. Qh6+ {[%clk 0:00:08]}  Ke5 {[%clk 0:00:02]} 32. Qe3+ {[%clk 0:00:08]}  Kf6 {[%clk 0:00:02]} 33. Rg6+ {[%clk 0:00:07]}  Kxf5 {[%clk 0:00:02]} 34. Rg5+ {[%clk 0:00:07]}  Kf6 {[%clk 0:00:02]} 35. Qe5+ {[%clk 0:00:08]}  Kf7 {[%clk 0:00:02]} 36. Rg7# {[%clk 0:00:09]} 1-0

[Event "December 12 Late 2023"]
[Site "https://www.chess.com"]
[Date "2023.12.12"]
[Round "6"]
[White "Omelja, Artem"]
[Black "Zakarian, David"]
[Result "1-0"]
[Board "61"]
[TimeControl "180+1"]
[WhiteFideId "14119846"]
[BlackFideId "13301276"]
[WhiteElo "2624"]
[BlackElo "2417"]
[WhiteTeam "UKR"]
[BlackTeam "ARM"]
[WhiteClock "0:01:35"]
[BlackClock "0:00:13"]

1. e4 {[%clk 0:03:00]}  Nc6 {[%clk 0:02:58]} 2. d4 {[%clk 0:02:59]}  d5 {[%clk 0:02:58]} 3. e5 {[%clk 0:02:59]}  f6 {[%clk 0:02:58]} 4. f4 {[%clk 0:02:56]}  Bf5 {[%clk 0:02:57]} 5. c3 {[%clk 0:02:55]}  e6 {[%clk 0:02:57]} 6. Bd3 {[%clk 0:02:55]}  Nh6 {[%clk 0:02:58]} 7. Nf3 {[%clk 0:02:54]}  Be7 {[%clk 0:02:57]} 8. O-O {[%clk 0:02:55]}  O-O {[%clk 0:02:58]} 9. Be3 {[%clk 0:02:54]}  Be4 {[%clk 0:02:57]} 10. Qe2 {[%clk 0:02:51]}  f5 {[%clk 0:02:54]} 11. Nbd2 {[%clk 0:02:51]}  Nf7 {[%clk 0:02:53]} 12. a3 {[%clk 0:02:47]}  Kh8 {[%clk 0:02:52]} 13. c4 {[%clk 0:02:47]}  g5 {[%clk 0:02:46]} 14. fxg5 {[%clk 0:02:46]}  Nxg5 {[%clk 0:02:45]} 15. Nxg5 {[%clk 0:02:46]}  Bxg5 {[%clk 0:02:46]} 16. Bxe4 {[%clk 0:02:46]}  dxe4 {[%clk 0:02:39]} 17. Nb3 {[%clk 0:02:46]}  Rg8 {[%clk 0:02:34]} 18. Rad1 {[%clk 0:02:40]}  Qe7 {[%clk 0:02:14]} 19. Kh1 {[%clk 0:02:38]}  Raf8 {[%clk 0:01:57]} 20. Bg1 {[%clk 0:02:37]}  Rg6 {[%clk 0:01:41]} 21. d5 {[%clk 0:02:32]}  Nxe5 {[%clk 0:01:36]} 22. Nd4 {[%clk 0:02:32]}  exd5 {[%clk 0:01:20]} 23. Nxf5 {[%clk 0:02:31]}  Rxf5 {[%clk 0:00:43]} 24. Rxf5 {[%clk 0:02:31]}  Nxc4 {[%clk 0:00:35]} 25. Rdxd5 {[%clk 0:02:04]}  Nd6 {[%clk 0:00:35]} 26. Rde5 {[%clk 0:02:03]}  Qg7 {[%clk 0:00:26]} 27. Bd4 {[%clk 0:01:59]}  Bf6 {[%clk 0:00:20]} 28. Rxf6 {[%clk 0:01:49]}  Rxf6 {[%clk 0:00:20]} 29. Rd5 {[%clk 0:01:44]}  Qf7 {[%clk 0:00:18]} 30. Qf2 {[%clk 0:01:38]}  Kg7 {[%clk 0:00:17]} 31. Rg5+ {[%clk 0:01:37]}  Kh6 {[%clk 0:00:13]} 32. Qh4+ {[%clk 0:01:35]} 1-0

[Event "December 12 Late 2023"]
[Site "https://www.chess.com"]
[Date "2023.12.12"]
[Round "6"]
[White "Esmeraldas Huachi, Anderson"]
[Black "Golubev, Mikhail"]
[Result "0-1"]
[Board "63"]
[TimeControl "180+1"]
[WhiteFideId "3616363"]
[BlackFideId "14100983"]
[WhiteElo "2415"]
[BlackElo "2621"]
[WhiteTeam "ECU"]
[BlackTeam "UKR"]
[WhiteClock "0:00:01"]
[BlackClock "0:00:05"]

1. d4 {[%clk 0:03:00]}  Nf6 {[%clk 0:02:59]} 2. c4 {[%clk 0:03:01]}  g6 {[%clk 0:02:59]} 3. Nc3 {[%clk 0:02:58]}  Bg7 {[%clk 0:02:59]} 4. e4 {[%clk 0:02:58]}  d6 {[%clk 0:03:00]} 5. Be2 {[%clk 0:02:59]}  O-O {[%clk 0:03:00]} 6. Be3 {[%clk 0:02:59]}  c5 {[%clk 0:02:59]} 7. d5 {[%clk 0:03:00]}  e6 {[%clk 0:02:59]} 8. h3 {[%clk 0:02:59]}  exd5 {[%clk 0:02:58]} 9. exd5 {[%clk 0:03:00]}  Re8 {[%clk 0:02:47]} 10. Qc2 {[%clk 0:03:00]}  Bf5 {[%clk 0:02:44]} 11. Bd3 {[%clk 0:03:00]}  Bxd3 {[%clk 0:02:37]} 12. Qxd3 {[%clk 0:03:01]}  Bh6 {[%clk 0:02:33]} 13. Nd1 {[%clk 0:02:59]}  Qa5+ {[%clk 0:02:23]} 14. Qc3 {[%clk 0:02:54]}  Qxc3+ {[%clk 0:02:21]} 15. bxc3 {[%clk 0:02:55]}  Nbd7 {[%clk 0:02:10]} 16. Ne2 {[%clk 0:02:54]}  Bg7 {[%clk 0:02:02]} 17. Bf4 {[%clk 0:02:53]}  Nb6 {[%clk 0:02:01]} 18. Ne3 {[%clk 0:02:51]}  Ne4 {[%clk 0:01:53]} 19. Rc1 {[%clk 0:02:43]}  Na4 {[%clk 0:01:53]} 20. O-O {[%clk 0:02:18]}  Naxc3 {[%clk 0:01:49]} 21. Nxc3 {[%clk 0:02:17]}  Nxc3 {[%clk 0:01:49]} 22. Rc2 {[%clk 0:02:09]}  Rad8 {[%clk 0:01:35]} 23. Rfc1 {[%clk 0:02:04]}  Ne4 {[%clk 0:01:30]} 24. Rb1 {[%clk 0:02:03]}  Rd7 {[%clk 0:01:25]} 25. a4 {[%clk 0:02:02]}  Nc3 {[%clk 0:01:21]} 26. Rb3 {[%clk 0:01:59]}  Nxa4 {[%clk 0:01:03]} 27. Ra2 {[%clk 0:01:59]}  b5 {[%clk 0:01:02]} 28. cxb5 {[%clk 0:01:56]}  Nb6 {[%clk 0:01:02]} 29. Rba3 {[%clk 0:01:39]}  Re4 {[%clk 0:01:00]} 30. Bg3 {[%clk 0:01:30]}  Nc8 {[%clk 0:00:59]} 31. Ra6 {[%clk 0:01:29]}  Be5 {[%clk 0:00:55]} 32. Rc6 {[%clk 0:01:29]}  Bxg3 {[%clk 0:00:49]} 33. Rxc8+ {[%clk 0:01:28]}  Kg7 {[%clk 0:00:49]} 34. Ra8 {[%clk 0:01:15]}  Bf4 {[%clk 0:00:49]} 35. R8xa7 {[%clk 0:01:15]}  Rxa7 {[%clk 0:00:48]} 36. Rxa7 {[%clk 0:01:16]}  Bxe3 {[%clk 0:00:47]} 37. fxe3 {[%clk 0:01:17]}  Rxe3 {[%clk 0:00:44]} 38. Rd7 {[%clk 0:01:13]}  Rb3 {[%clk 0:00:43]} 39. Rxd6 {[%clk 0:01:13]}  Rxb5 {[%clk 0:00:43]} 40. Rc6 {[%clk 0:01:14]}  Kf8 {[%clk 0:00:38]} 41. d6 {[%clk 0:01:08]}  Ke8 {[%clk 0:00:38]} 42. Rc7 {[%clk 0:01:09]}  Rb6 {[%clk 0:00:37]} 43. Rxc5 {[%clk 0:00:57]}  Rxd6 {[%clk 0:00:36]} 44. Ra5 {[%clk 0:00:58]}  Kf8 {[%clk 0:00:34]} 45. Kh2 {[%clk 0:00:58]}  Kg7 {[%clk 0:00:34]} 46. Rc5 {[%clk 0:00:58]}  Rd3 {[%clk 0:00:33]} 47. Ra5 {[%clk 0:00:58]}  h6 {[%clk 0:00:33]} 48. Rc5 {[%clk 0:00:58]}  Rb3 {[%clk 0:00:32]} 49. Ra5 {[%clk 0:00:58]}  Rd3 {[%clk 0:00:33]} 50. Rc5 {[%clk 0:00:59]}  Rb3 {[%clk 0:00:33]} 51. Ra5 {[%clk 0:00:59]}  Re3 {[%clk 0:00:32]} 52. Rc5 {[%clk 0:00:59]}  g5 {[%clk 0:00:33]} 53. Ra5 {[%clk 0:00:58]}  Rd3 {[%clk 0:00:33]} 54. Ra6 {[%clk 0:00:58]}  Rc3 {[%clk 0:00:33]} 55. Rb6 {[%clk 0:00:59]}  Rd3 {[%clk 0:00:33]} 56. Ra6 {[%clk 0:00:59]}  f6 {[%clk 0:00:33]} 57. Rc6 {[%clk 0:00:59]}  Kg6 {[%clk 0:00:33]} 58. Rc5 {[%clk 0:00:59]}  Re3 {[%clk 0:00:34]} 59. Ra5 {[%clk 0:00:59]}  h5 {[%clk 0:00:34]} 60. Rb5 {[%clk 0:00:59]}  Rd3 {[%clk 0:00:33]} 61. Rc5 {[%clk 0:00:59]}  Rb3 {[%clk 0:00:33]} 62. Ra5 {[%clk 0:00:58]}  Rc3 {[%clk 0:00:33]} 63. Rb5 {[%clk 0:00:58]}  Rd3 {[%clk 0:00:34]} 64. Rc5 {[%clk 0:00:59]}  h4 {[%clk 0:00:31]} 65. Ra5 {[%clk 0:00:57]}  Rd6 {[%clk 0:00:27]} 66. Rb5 {[%clk 0:00:57]}  Re6 {[%clk 0:00:28]} 67. Rc5 {[%clk 0:00:55]}  Rd6 {[%clk 0:00:28]} 68. Ra5 {[%clk 0:00:55]}  Rc6 {[%clk 0:00:28]} 69. Rb5 {[%clk 0:00:56]}  Ra6 {[%clk 0:00:28]} 70. Rc5 {[%clk 0:00:56]}  Rd6 {[%clk 0:00:28]} 71. Rb5 {[%clk 0:00:56]}  f5 {[%clk 0:00:28]} 72. Rb8 {[%clk 0:00:55]}  Kf6 {[%clk 0:00:27]} 73. Re8 {[%clk 0:00:55]}  Re6 {[%clk 0:00:27]} 74. Rg8 {[%clk 0:00:54]}  Re7 {[%clk 0:00:24]} 75. Kg1 {[%clk 0:00:50]}  f4 {[%clk 0:00:24]} 76. Kf2 {[%clk 0:00:48]}  Re3 {[%clk 0:00:24]} 77. Rf8+ {[%clk 0:00:47]}  Kg7 {[%clk 0:00:22]} 78. Rb8 {[%clk 0:00:46]}  Rg3 {[%clk 0:00:22]} 79. Rc8 {[%clk 0:00:45]}  f3 {[%clk 0:00:22]} 80. gxf3 {[%clk 0:00:35]}  Rxh3 {[%clk 0:00:22]} 81. Rc6 {[%clk 0:00:31]}  Rh2+ {[%clk 0:00:21]} 82. Kg1 {[%clk 0:00:27]}  Rb2 {[%clk 0:00:22]} 83. Kf1 {[%clk 0:00:27]}  Rb7 {[%clk 0:00:20]} 84. Kg2 {[%clk 0:00:27]}  Rf7 {[%clk 0:00:20]} 85. Rc3 {[%clk 0:00:16]}  Rf6 {[%clk 0:00:20]} 86. Kh3 {[%clk 0:00:16]}  Kg6 {[%clk 0:00:21]} 87. Ra3 {[%clk 0:00:17]}  Rf4 {[%clk 0:00:20]} 88. Rb3 {[%clk 0:00:16]}  Rd4 {[%clk 0:00:20]} 89. Ra3 {[%clk 0:00:16]}  Kf5 {[%clk 0:00:20]} 90. Ra8 {[%clk 0:00:13]}  Kf4 {[%clk 0:00:19]} 91. Rf8+ {[%clk 0:00:13]}  Ke3 {[%clk 0:00:19]} 92. Kg2 {[%clk 0:00:13]}  Rd2+ {[%clk 0:00:17]} 93. Kh3 {[%clk 0:00:13]}  Rf2 {[%clk 0:00:17]} 94. Kg4 {[%clk 0:00:14]}  Rg2+ {[%clk 0:00:17]} 95. Kh5 {[%clk 0:00:14]}  h3 {[%clk 0:00:17]} 96. Rh8 {[%clk 0:00:02]}  Kxf3 {[%clk 0:00:13]} 97. Rf8+ {[%clk 0:00:02]}  Kg3 {[%clk 0:00:11]} 98. Ra8 {[%clk 0:00:02]}  h2 {[%clk 0:00:09]} 99. Ra3+ {[%clk 0:00:02]}  Kf4 {[%clk 0:00:08]} 100. Ra4+ {[%clk 0:00:03]}  Kf5 {[%clk 0:00:07]} 101. Ra5+ {[%clk 0:00:04]}  Ke6 {[%clk 0:00:07]} 102. Ra6+ {[%clk 0:00:04]}  Kd5 {[%clk 0:00:07]} 103. Ra1 {[%clk 0:00:03]}  Rg1 {[%clk 0:00:07]} 104. Ra5+ {[%clk 0:00:04]}  Kc6 {[%clk 0:00:06]} 105. Ra6+ {[%clk 0:00:03]}  Kb5 {[%clk 0:00:06]} 106. Rg6 {[%clk 0:00:01]}  h1=R# {[%clk 0:00:05]} 0-1

[Event "December 12 Late 2023"]
[Site "https://www.chess.com"]
[Date "2023.12.12"]
[Round "6"]
[White "Bardyk, Artem"]
[Black "Grutter, Tim"]
[Result "0-1"]
[Board "67"]
[TimeControl "180+1"]
[WhiteFideId "34349979"]
[BlackFideId "1057472"]
[WhiteElo "2722"]
[BlackElo "2523"]
[WhiteTeam "RUS"]
[BlackTeam "NED"]
[WhiteClock "0:00:00"]
[BlackClock "0:00:18"]

1. e4 {[%clk 0:03:00]}  c6 {[%clk 0:02:50]} 2. Nf3 {[%clk 0:02:58]}  d5 {[%clk 0:02:49]} 3. exd5 {[%clk 0:02:59]}  cxd5 {[%clk 0:02:49]} 4. Ne5 {[%clk 0:02:59]}  a6 {[%clk 0:02:48]} 5. d4 {[%clk 0:02:59]}  Nc6 {[%clk 0:02:47]} 6. c3 {[%clk 0:02:50]}  Nxe5 {[%clk 0:02:44]} 7. dxe5 {[%clk 0:02:51]}  Bf5 {[%clk 0:02:43]} 8. Nd2 {[%clk 0:02:42]}  e6 {[%clk 0:02:43]} 9. Nf3 {[%clk 0:02:42]}  Bc5 {[%clk 0:02:34]} 10. Bd3 {[%clk 0:02:33]}  Bxd3 {[%clk 0:02:29]} 11. Qxd3 {[%clk 0:02:33]}  Ne7 {[%clk 0:02:27]} 12. O-O {[%clk 0:02:30]}  Nf5 {[%clk 0:02:24]} 13. c4 {[%clk 0:02:29]}  dxc4 {[%clk 0:02:20]} 14. Qxc4 {[%clk 0:02:30]}  Qb6 {[%clk 0:02:09]} 15. b4 {[%clk 0:02:15]}  Be7 {[%clk 0:01:57]} 16. Rb1 {[%clk 0:02:10]}  O-O {[%clk 0:01:55]} 17. Qg4 {[%clk 0:01:58]}  Rac8 {[%clk 0:01:47]} 18. Bg5 {[%clk 0:01:35]}  Bxg5 {[%clk 0:01:41]} 19. Nxg5 {[%clk 0:01:30]}  Rc2 {[%clk 0:01:33]} 20. Ne4 {[%clk 0:01:18]}  Kh8 {[%clk 0:01:32]} 21. h4 {[%clk 0:01:05]}  Rc4 {[%clk 0:01:26]} 22. a3 {[%clk 0:00:38]}  Ne3 {[%clk 0:01:19]} 23. fxe3 {[%clk 0:00:29]}  Qxe3+ {[%clk 0:01:19]} 24. Rf2 {[%clk 0:00:28]}  Rxe4 {[%clk 0:01:15]} 25. Qf3 {[%clk 0:00:21]}  Rxe5 {[%clk 0:01:08]} 26. Qxb7 {[%clk 0:00:16]}  Rf5 {[%clk 0:01:01]} 27. Rf1 {[%clk 0:00:17]}  Qxa3 {[%clk 0:00:51]} 28. Rxf5 {[%clk 0:00:14]}  exf5 {[%clk 0:00:52]} 29. Rxf5 {[%clk 0:00:14]}  Qe3+ {[%clk 0:00:40]} 30. Rf2 {[%clk 0:00:13]}  Qe1+ {[%clk 0:00:35]} 31. Rf1 {[%clk 0:00:13]}  Qxh4 {[%clk 0:00:29]} 32. Rxf7 {[%clk 0:00:11]}  Qd4+ {[%clk 0:00:24]} 33. Kh2 {[%clk 0:00:07]}  Qe5+ {[%clk 0:00:19]} 34. g3 {[%clk 0:00:00]}  Qh5+ {[%clk 0:00:18]} 0-1

[Event "December 12 Late 2023"]
[Site "https://www.chess.com"]
[Date "2023.12.12"]
[Round "6"]
[White "Reprintsev, Alexander"]
[Black "Sai Krishna G V"]
[Result "0-1"]
[Board "68"]
[TimeControl "180+1"]
[WhiteFideId "14100541"]
[BlackFideId "5028280"]
[WhiteElo "2514"]
[BlackElo "2701"]
[WhiteTeam "UKR"]
[BlackTeam "IND"]
[WhiteClock "0:00:00"]
[BlackClock "0:00:14"]

1. e4 {[%clk 0:03:00]}  c5 {[%clk 0:02:55]} 2. b3 {[%clk 0:02:59]}  d5 {[%clk 0:02:53]} 3. exd5 {[%clk 0:02:58]}  Qxd5 {[%clk 0:02:53]} 4. Nc3 {[%clk 0:02:58]}  Qe5+ {[%clk 0:02:48]} 5. Be2 {[%clk 0:02:57]}  Nf6 {[%clk 0:02:44]} 6. Nf3 {[%clk 0:02:56]}  Qc7 {[%clk 0:02:44]} 7. Nb5 {[%clk 0:02:32]}  Qd8 {[%clk 0:02:35]} 8. a4 {[%clk 0:02:31]}  e6 {[%clk 0:02:35]} 9. O-O {[%clk 0:02:31]}  Be7 {[%clk 0:02:35]} 10. Bb2 {[%clk 0:02:30]}  O-O {[%clk 0:02:35]} 11. d4 {[%clk 0:02:30]}  Nc6 {[%clk 0:02:34]} 12. c4 {[%clk 0:02:28]}  b6 {[%clk 0:02:29]} 13. dxc5 {[%clk 0:02:20]}  bxc5 {[%clk 0:02:27]} 14. Ne5 {[%clk 0:02:07]}  Bb7 {[%clk 0:02:20]} 15. Bf3 {[%clk 0:02:05]}  Qc8 {[%clk 0:02:16]} 16. Nxc6 {[%clk 0:01:59]}  Bxc6 {[%clk 0:02:17]} 17. Nd6 {[%clk 0:01:43]}  Qc7 {[%clk 0:02:13]} 18. Nb5 {[%clk 0:01:39]}  Qb7 {[%clk 0:02:08]} 19. Bxc6 {[%clk 0:01:37]}  Qxc6 {[%clk 0:02:09]} 20. Qc2 {[%clk 0:01:23]}  a6 {[%clk 0:02:08]} 21. Nc3 {[%clk 0:01:23]}  Rab8 {[%clk 0:02:08]} 22. Rab1 {[%clk 0:01:16]}  Rb7 {[%clk 0:02:05]} 23. Rfd1 {[%clk 0:00:53]}  Rfb8 {[%clk 0:02:04]} 24. Ba1 {[%clk 0:00:52]}  Rb4 {[%clk 0:01:38]} 25. Na2 {[%clk 0:00:48]}  R4b6 {[%clk 0:01:38]} 26. Rd3 {[%clk 0:00:45]}  Ne4 {[%clk 0:01:26]} 27. f3 {[%clk 0:00:45]}  Nd6 {[%clk 0:01:24]} 28. Rbd1 {[%clk 0:00:44]}  Nf5 {[%clk 0:01:22]} 29. Nc1 {[%clk 0:00:42]}  Nd4 {[%clk 0:01:20]} 30. Bxd4 {[%clk 0:00:35]}  cxd4 {[%clk 0:01:21]} 31. Kh1 {[%clk 0:00:35]}  e5 {[%clk 0:01:21]} 32. f4 {[%clk 0:00:29]}  f6 {[%clk 0:01:09]} 33. fxe5 {[%clk 0:00:29]}  fxe5 {[%clk 0:01:10]} 34. a5 {[%clk 0:00:29]}  R6b7 {[%clk 0:01:08]} 35. Rh3 {[%clk 0:00:29]}  g6 {[%clk 0:01:04]} 36. Re1 {[%clk 0:00:29]}  Bf6 {[%clk 0:01:04]} 37. Rf3 {[%clk 0:00:25]}  Bg7 {[%clk 0:01:03]} 38. h4 {[%clk 0:00:24]}  Re8 {[%clk 0:00:55]} 39. Re4 {[%clk 0:00:22]}  Rd7 {[%clk 0:00:50]} 40. Qe2 {[%clk 0:00:20]}  Qc5 {[%clk 0:00:40]} 41. Nd3 {[%clk 0:00:17]}  Qxa5 {[%clk 0:00:39]} 42. h5 {[%clk 0:00:15]}  Rd6 {[%clk 0:00:36]} 43. Rg3 {[%clk 0:00:15]}  Qd8 {[%clk 0:00:33]} 44. Qf3 {[%clk 0:00:12]}  Rf8 {[%clk 0:00:31]} 45. Qg4 {[%clk 0:00:12]}  Qe8 {[%clk 0:00:26]} 46. c5 {[%clk 0:00:10]}  Rdf6 {[%clk 0:00:24]} 47. b4 {[%clk 0:00:09]}  Rf1+ {[%clk 0:00:19]} 48. Kh2 {[%clk 0:00:09]}  R8f5 {[%clk 0:00:20]} 49. Rh3 {[%clk 0:00:08]}  gxh5 {[%clk 0:00:19]} 50. Qg3 {[%clk 0:00:07]}  Kh8 {[%clk 0:00:19]} 51. Rhh4 {[%clk 0:00:04]}  Bf6 {[%clk 0:00:19]} 52. Rh3 {[%clk 0:00:04]}  h4 {[%clk 0:00:20]} 53. Qg4 {[%clk 0:00:04]}  Qf7 {[%clk 0:00:16]} 54. c6 {[%clk 0:00:04]}  Qc7 {[%clk 0:00:15]} 55. Nc5 {[%clk 0:00:04]}  Qxc6 {[%clk 0:00:15]} 56. Re2 {[%clk 0:00:03]}  Bg5 {[%clk 0:00:14]} 57. Qh5 {[%clk 0:00:02]}  Bf4+ {[%clk 0:00:14]} 58. g3 {[%clk 0:00:00]}  hxg3+ {[%clk 0:00:14]} 0-1